[Event "Czech Extraliga 2024-25"]
[Site "Czechia"]
[Date "2024.11.02"]
[Round "1.1"]
[White "Delgerdalai, Bayarjavkhlan"]
[Black "Rodshtein, Maxim"]
[Result "0-1"]
[ECO "B50"]
[WhiteElo "2347"]
[BlackElo "2636"]
[Annotator "TA"]
[PlyCount "118"]
[EventDate "2024.09.12"]
[EventType "team-tourn"]
[EventCountry "CZE"]
[SourceTitle "playchess.com"]
[Source "ChessBase"]
[SourceQuality "1"]
[TimeControl "40/5400+30:1800+30"]

{[%evp 9,118,0,8,0,0,-10,-18,-19,-12,-15,-16,-16,-20,-16,-15,-22,-6,-18,-6,0,9,12,12,0,0,-9,-16,-13,-14,-23,-19,-29,-34,-34,-28,-21,-37,-23,-21,-12,-14,-30,-48,-39,-43,-44,-43,-47,-45,-49,-54,-47,-37,-18,-22,-33,-26,-25,0,0,0,0,0,0,0,-173,-202,-198,-203,-164,-26,-208,-176,-226,-202,-211,-197,-195,-116,-103,-67,-66,-52,-52,-25,-27,-13,-54,-53,-52,-54,-144,-120,-179,-181,-300,-285,-288,-293,-326,-283,-399,-388,-388,-377,-747,-508,-936,-947,-1116,-1034]} 1. e4 {[%emt 0:00:03]} c5 {[%emt 0:00:16]} 2. Nf3 {[%emt 0:00:14]} d6 {[%emt 0:00:17]} 3. Nc3 {[%emt 0:00:49]} Nf6 {[%emt 0:00:38]} 4. e5 {[%emt 0:01:55]} dxe5 {[%emt 0:00:26]} 5. Nxe5 {[%emt 0:00:05]} a6 {[%emt 0:07:28]} 6. g3 {[%emt 0:02:53]} Qd6 {[%emt 0:00:50]} 7. Qe2 {[%emt 0:01:33]} Nc6 {[%emt 0:02:54]} 8. Nxc6 {[%emt 0:02:21] The position is equal.} Qxc6 {[%emt 0:00:05]} 9. Rg1 {[%emt 0:00:03]} Bg4 {[%emt 0:04:09]} 10. Bg2 {[%emt 0:00:05]} Qxg2 {[%emt 0:11:08]} 11. Rxg2 {[%emt 0:00:05]} Bxe2 {[%emt 0:00:04]} 12. Kxe2 {[%emt 0:00:06]} e6 {[%emt 0:01:44]} 13. d3 {[%emt 0:00:50]} Rc8 {[%emt 0:02:22]} 14. b3 {[%emt 0:12:09]} Be7 {[%emt 0:08:23]} 15. Bb2 {[%emt 0:03:30]} O-O {[%emt 0:00:26]} 16. Rgg1 {[%emt 0:05:24]} Rfd8 {[%emt 0:02:30]} 17. Rgd1 {[%emt 0:12:52]} Nd7 {[%emt 0:06:09][%cal Bf6d7,Bd7b8,Bb8c6,Bc6b4][%mdl 32]} 18. Ne4 {[%emt 0:13:29]} Nb8 {[%emt 0:02:16]} 19. Rac1 {[%emt 0:06:51]} Nc6 {[%emt 0:01:34]} 20. Kf1 {[%emt 0:01:50]} b5 {[%emt 0:02:24]} 21. a4 {[%emt 0:03:37]} Nb4 {[%emt 0:10:36]} 22. Ke2 {[%emt 0:10:45]} f5 {[%emt 0:10:19]} 23. Nd2 {[%emt 0:04:29]} Bf6 {[%emt 0:00:16]} 24. Bxf6 {[%emt 0:00:38]} gxf6 {[%emt 0:00:03]} 25. Re1 {[%emt 0:07:25]} Kf7 {[%emt 0:00:41]} 26. f4 {[%emt 0:01:50]} h5 {[%emt 0:01:04]} 27. Kf2 {[%emt 0:02:23] [#]} h4 $1 {[%emt 0:05:18]} 28. Kg2 {[%emt 0:05:30]} Rg8 {[%emt 0:03:43]} 29. Kf2 {[%emt 0:00:35]} Rh8 {[%emt 0:02:26] ...hxg3+ would now be deadly.} 30. Kg2 {[%emt 0:00:32]} Rh7 {[%emt 0:06:22]} 31. Nf3 {[%emt 0:00:28]} bxa4 {[%emt 0:01:14]} 32. bxa4 {[%emt 0:00:04]} hxg3 {[%emt 0:00:18]} 33. hxg3 {[%emt 0:00:06]} c4 {[%emt 0:01:28]} 34. Nd4 {[%emt 0:01:15]} Rch8 {[%emt 0:02:42]} 35. dxc4 {[%emt 0:00:33][%cal Od4f3]} Rh2+ {[%emt 0:00:42]} 36. Kf3 {[%emt 0:00:12]} Rc8 {[%emt 0:01:18]} 37. Nxe6 $2 {[%emt 0:00:56]} (37. c3 $11 {and White has nothing to worry.} Rxc4 (37... Nd3 38. Rh1 $15) 38. cxb4 Rxd4 39. Rc7+ Kg6 40. Rxe6) 37... Rxc4 $19 {[%emt 0:00:07]} 38. Nd8+ {[%emt 0:00:12]} Kg6 {[%emt 0:00:20][%mdl 1024] Black has strong compensation.} 39. Re2 {[%emt 0:00:47]} Rc3+ $1 {[%emt 0:01:03]} 40. Re3 {[%emt 0:00:04] [#]} Rc8 {[%emt 0:02:21]} 41. c3 {[%emt 0:26:29]} Na2 {[%emt 0:04:14]} 42. Rd1 {[%emt 0:00:09]} Nxc3 {[%emt 0:00:10]} 43. Rdd3 {[%emt 0:00:44]} Ne4 {[%emt 0:03:30]} (43... Nxa4 $19 44. Re2 Rxe2 45. Kxe2 a5) 44. Re2 $17 {[%emt 0:01:32]} Rxe2 {[%emt 0:11:27]} 45. Kxe2 {[%emt 0:00:04][%mdl 4096] Endgame. KRN-KRN} Rc2+ {[%emt 0:00:04]} 46. Kf3 {[%emt 0:02:56]} Rf2+ {[%emt 0:01:07]} 47. Ke3 {[%emt 0:00:04][%cal Og3g4]} Rg2 {[%emt 0:00:49]} 48. Ne6 {[%emt 0:02:12]} Rxg3+ {[%emt 0:01:09]} (48... Nxg3 $2 49. Kf3 Re2 50. Nd4 $18) 49. Kd4 {[%emt 0:00:10]} Rg1 {[%emt 0:00:45]} 50. Ra3 {[%emt 0:01:08] Against Ra1} (50. Kc4 $1 $15) 50... Rc1 {[%emt 0:03:26]} 51. Kd5 {[%emt 0:00:29] [#] Repels Rc6} (51. Ra2 $17) 51... Kh5 $1 $19 {[%emt 0:01:22]} 52. Rb3 {[%emt 0:00:29]} (52. Nf8 {is a better defense.}) 52... Rd1+ {[%emt 0:02:21]} 53. Nd4 {[%emt 0:00:27]} Kg4 {[%emt 0:00:41]} 54. Rb6 {[%emt 0:00:32]} Kxf4 {[%emt 0:00:45]} 55. Kc4 {[%emt 0:00:03]} (55. a5 $142) 55... a5 {[%emt 0:03:34]} 56. Ra6 {[%emt 0:00:45]} Rc1+ {[%emt 0:00:49]} 57. Kb5 $2 {[%emt 0:00:41]} (57. Kb3 Nc5+ 58. Kb2 Nxa6 (58... Nxa4+ $2 {too greedy.} 59. Kxc1 Ke4 60. Rxa5 $18) 59. Kxc1) 57... Rc5+ {[%emt 0:00:13] Black is clearly winning.} 58. Kb6 {[%emt 0:00:04] Threatens to win with Ne6+.} Ke3 {[%emt 0:00:37]} 59. Nb3 {[%emt 0:00:54]} Rc3 {[%emt 0:00:32] Weighted Error Value: White=0.31/Black=0.07 (flawless) .  Loses game:     	White=2     	---        Mistake:       	White=5     	Black=1      Inaccurate:     	White=2     	Black=1      OK:         	White=17    	Black=22     Best:        	White=5     	Black=6      Strong:       	---       	Black=2} 0-1

[Event "Czech Extraliga 2024-25"]
[Site "Czechia"]
[Date "2024.11.02"]
[Round "1.2"]
[White "Korobov, Anton"]
[Black "Michalik, Peter"]
[Result "1/2-1/2"]
[ECO "D12"]
[WhiteElo "2636"]
[BlackElo "2562"]
[Annotator "TA"]
[PlyCount "67"]
[EventDate "2024.09.12"]
[EventType "team-tourn"]
[EventCountry "CZE"]
[SourceTitle "playchess.com"]
[Source "ChessBase"]
[SourceQuality "1"]
[TimeControl "40/5400+30:1800+30"]

{[%evp 11,67,27,34,15,20,24,30,22,29,22,22,17,27,27,12,17,25,19,20,0,31,-7,0,0,17,5,37,35,41,52,50,57,81,46,48,54,54,54,58,45,45,34,23,11,11,11,11,4,46,46,46,46,39,39,76,76,76,76]} 1. d4 {[%emt 0:00:02]} d5 {[%emt 0:00:18]} 2. c4 {[%emt 0:00:07]} c6 {[%emt 0:00:19]} 3. Nf3 {[%emt 0:00:06]} Nf6 {[%emt 0:00:06]} 4. e3 {[%emt 0:00:08]} Bf5 {[%emt 0:00:24]} 5. Nc3 {[%emt 0:00:16]} e6 {[%emt 0:00:11]} 6. Nh4 {[%emt 0:00:22]} Bg6 {[%emt 0:00:14]} 7. Be2 {[%emt 0:02:01]} Nbd7 {[%emt 0:00:49]} 8. O-O {[%emt 0:00:29]} Bd6 {[%emt 0:01:14]} 9. g3 {[%emt 0:01:28] White has an edge.} O-O {[%emt 0:00:32]} 10. Nxg6 {[%emt 0:02:35]} hxg6 {[%emt 0:00:06]} 11. Qc2 {[%emt 0:01:35]} Rc8 {[%emt 0:02:14]} 12. c5 {[%emt 0:02:27]} Bc7 {[%emt 0:00:32]} 13. f4 {[%emt 0:03:32]} Ba5 {[%emt 0:01:11]} 14. Nd1 {[%emt 0:11:30]} Ne4 {[%emt 0:03:05] Prevents b4.} 15. a3 {[%emt 0:14:02]} Bc7 {[%emt 0:03:54]} 16. b4 {[%emt 0:00:26]} f5 {[%emt 0:02:12]} 17. Nf2 {[%emt 0:09:04]} Nxf2 {[%emt 0:03:49]} 18. Rxf2 {[%emt 0:00:06]} Nf6 {[%emt 0:00:03][%cal Og6g5]} 19. h4 {[%emt 0:04:40]} Ne4 {[%emt 0:03:28]} 20. Rg2 {[%emt 0:00:17]} Qd7 {[%emt 0:03:31]} 21. Bd2 {[%emt 0:03:33]} a5 {[%emt 0:04:42]} 22. Be1 {[%emt 0:05:12]} axb4 {[%emt 0:07:35]} 23. axb4 {[%emt 0:00:09]} Ra8 {[%emt 0:00:04]} 24. Qb1 {[%emt 0:01:57]} b6 {[%emt 0:06:01]} 25. Bd3 {[%emt 0:08:07]} Rfb8 {[%emt 0:02:57]} 26. Rxa8 {[%emt 0:03:35]} Rxa8 {[%emt 0:00:04]} 27. Ra2 {[%emt 0:00:07]} Rxa2 {[%emt 0:00:20]} 28. Qxa2 {[%emt 0:00:03] [#] aiming for Qa8+.} b5 {[%emt 0:00:11]} 29. g4 {[%emt 0:07:54]} Qc8 {[%emt 0:05:09] Wards off Qa8} 30. g5 {[%emt 0:01:45]} Kf7 {[%emt 0:01:24]} 31. Qa7 {[%emt 0:01:10]} Ke8 {[%emt 0:00:22]} 32. Be2 {[%emt 0:01:47]} Qb8 {[%emt 0:00:39]} 33. Qxb8+ {[%emt 0:03:24]} (33. Qa6 $5 Kd7 $8 34. Bf3 $11) 33... Bxb8 {[%emt 0:00:06]} 34. Kg2 {[%emt 0:00:03] Weighted Error Value: White=0.07 (flawless) /Black=0.08 (flawless) .  Inaccurate:     	White=2     	Black=4      OK:         	White=13    	Black=10     Best:        	---       	Black=1} 1/2-1/2

[Event "Czech Extraliga 2024-25"]
[Site "Czechia"]
[Date "2024.11.02"]
[Round "1.2"]
[White "Dardha, Daniel"]
[Black "Movsesian, Sergei"]
[Result "1-0"]
[ECO "E73"]
[WhiteElo "2606"]
[BlackElo "2609"]
[Annotator "TA"]
[PlyCount "103"]
[EventDate "2024.09.12"]
[EventType "team-tourn"]
[EventCountry "CZE"]
[SourceTitle "playchess.com"]
[Source "ChessBase"]
[SourceQuality "1"]
[TimeControl "40/5400+30:1800+30"]

{[%evp 14,103,34,4,6,12,20,0,0,0,0,0,31,0,12,11,10,4,8,7,7,0,0,0,30,14,34,12,13,0,33,35,32,32,33,32,31,23,21,10,9,9,11,14,30,27,34,38,22,28,24,28,18,15,100,100,97,62,102,32,38,11,83,43,52,77,172,150,158,139,614,110,368,314,450,434,339,248,1521,1450,1188,637,5051,3039,29954,29949,12805,12804,12793,12793,6079,5118]} 1. d4 {[%emt 0:00:13]} Nf6 {[%emt 0:00:21]} 2. c4 {[%emt 0:00:08]} g6 {[%emt 0:00:32]} 3. h4 {[%emt 0:02:13][%cal Bh2h4,Bh4h5,Bh5h6][%mdl 32]} Bg7 {[%emt 0:03:19]} 4. Nc3 {[%emt 0:02:55]} d6 {[%emt 0:00:46]} 5. e4 {[%emt 0:00:08]} O-O {[%emt 0:00:57][%cal Bh8f8,Bf8e8,Be8e4][%mdl 32]} 6. Be2 {[%emt 0:00:48]} c5 {[%emt 0:02:15]} 7. d5 {[%emt 0:00:51]} e6 {[%emt 0:01:36]} 8. h5 {[%emt 0:00:57]} exd5 {[%emt 0:02:02]} 9. exd5 {[%emt 0:00:08]} Re8 {[%emt 0:00:51]} 10. Kf1 {[%emt 0:04:45]} Nbd7 {[%emt 0:07:13] The position is equal.} 11. h6 $1 {[%emt 0:10:17]} Bh8 {[%emt 0:04:01]} 12. Bg5 {[%emt 0:00:22]} Qb6 {[%emt 0:01:46]} 13. b3 {[%emt 0:02:02]} Ne4 {[%emt 0:01:15]} 14. Nxe4 {[%emt 0:00:10]} Rxe4 {[%emt 0:00:03] [#]} 15. Nf3 $1 {[%emt 0:09:28]} Re8 {[%emt 0:00:43] [#]} (15... a5 16. Rb1) 16. Bd3 $1 {[%emt 0:21:17]} Ne5 {[%emt 0:06:44]} 17. Nxe5 {[%emt 0:00:53]} Bxe5 {[%emt 0:00:14]} 18. Rb1 {[%emt 0:01:44]} a5 {[%emt 0:02:49][%cal Oa5a4]} 19. g3 {[%emt 0:03:11]} Bd7 {[%emt 0:05:18]} 20. Qd2 {[%emt 0:06:36]} Qb4 {[%emt 0:02:58]} 21. Qd1 {[%emt 0:04:48]} Qb6 {[%emt 0:02:55]} 22. Kg2 {[%emt 0:01:44]} Qc7 {[%emt 0:02:48]} 23. Qc2 {[%emt 0:05:48]} Bh8 {[%emt 0:08:46]} 24. Rbe1 {[%emt 0:04:59]} Bd4 {[%emt 0:03:13]} 25. Qd2 {[%emt 0:01:36]} f6 {[%emt 0:04:54]} 26. Be3 {[%emt 0:05:47]} (26. Bf4 {seems wilder.} Kf7 27. Qd1 Rxe1 28. Rxe1 a4 29. Qd2) 26... Bxe3 $1 {[%emt 0:01:07]} 27. Rxe3 {[%emt 0:00:54]} Rxe3 {[%emt 0:01:48]} 28. Qxe3 {[%emt 0:00:04]} Re8 {[%emt 0:01:19]} 29. Qd2 {[%emt 0:01:20]} Kf7 {[%emt 0:01:21]} 30. a3 {[%emt 0:01:30]} b6 {[%emt 0:03:05]} 31. b4 {[%emt 0:01:57]} axb4 {[%emt 0:05:42]} 32. axb4 {[%emt 0:00:04]} Ra8 {[%emt 0:03:47]} 33. Re1 {[%emt 0:02:37]} cxb4 {[%emt 0:08:57]} (33... Qd8 $11) 34. Qxb4 $16 {[%emt 0:00:35]} Qc5 {[%emt 0:00:36]} 35. Rb1 {[%emt 0:03:37] White is more active.} Ra3 {[%emt 0:08:41]} 36. Qxc5 {[%emt 0:01:13]} ({White should play} 36. Bf1 $1 $16) 36... dxc5 {[%emt 0:02:12][%mdl 4096] Endgame. KRB-KRB} 37. Be4 {[%emt 0:00:05][%cal Od5d6] d6! would now be deadly.} f5 {[%emt 0:01:27]} (37... Ra6 $1 $11) 38. Bf3 {[%emt 0:00:25]} Ra6 {[%emt 0:00:04]} 39. d6 {[%emt 0:00:47]} Ke6 {[%emt 0:00:55]} (39... g5 $16) 40. Bb7 $18 {[%emt 0:00:33]} Ra7 {[%emt 0:00:36] [#]} 41. Bd5+ {[%emt 0:30:08]} (41. Rxb6 $2 {is the wrong capture.} Rxb7 42. Ra6 (42. Rxb7 $2 Bc6+ 43. Kf1 Bxb7 $19) 42... Rb4 $19) 41... Kf6 $2 {[%emt 0:06:35][%mdl 8192]} (41... Kxd6 $2 {too greedy.} 42. Rxb6+ Ke5 43. Rxg6 $18) (41... Ke5 $16) 42. Rxb6 $2 {[%emt 0:00:00]} (42. Re1 $18 {is the precise move to win.}) 42... Kg5 $2 {[%emt 0:00:39][%mdl 8192]} (42... g5 $16 {was worth a try.} 43. Kf3 Ke5) 43. Rb7 {[%emt 0:00:00]} Rxb7 {[%emt 0:00:54]} 44. Bxb7 {[%emt 0:00:00] KB-KB} Kf6 {[%emt 0:06:22]} 45. Bd5 {[%emt 0:00:00]} g5 $2 {[%emt 0:07:33] [#]} (45... Be6 46. f4 Bd7) 46. g4 $1 {[%emt 0:00:00][%mdl 512]} Kg6 {[%emt 0:03:47]} 47. gxf5+ {[%emt 0:00:00]} Bxf5 {[%emt 0:03:32]} 48. Kf3 {[%emt 0:00:00] White wants to mate with Be4.} Bd7 {[%emt 0:01:25]} 49. Ke4 {[%emt 0:00:00]} Kf6 {[%emt 0:00:25]} 50. Bg8 {[%emt 0:00:56] White is clearly winning.} Bc6+ {[%emt 0:00:41]} 51. Kd3 {[%emt 0:00:51]} Kg6 {[%emt 0:00:45]} 52. Ke3 {[%emt 0:00:06] Weighted Error Value: White=0.42/Black=0.46.  Loses game:     	---       	Black=2      Missed win:     	White=1     	---        Mistake:       	White=1     	Black=4      Inaccurate:     	White=2     	Black=2      OK:         	White=11    	Black=20     Best:        	White=3     	Black=1      Strong:       	White=1     	Black=1      Brilliant:      	White=1     	---} 1-0

[Event "Czech Extraliga 2024-25"]
[Site "Czechia"]
[Date "2024.11.02"]
[Round "1.2"]
[White "Nasuta, Grzegorz"]
[Black "Nguyen, Thai Dai Van"]
[Result "0-1"]
[ECO "B33"]
[WhiteElo "2543"]
[BlackElo "2670"]
[Annotator "TA"]
[PlyCount "45"]
[EventDate "2024.09.12"]
[EventType "team-tourn"]
[EventCountry "CZE"]
[SourceTitle "playchess.com"]
[Source "ChessBase"]
[SourceQuality "1"]
[TimeControl "40/5400+30:1800+30"]

{[%evp 23,45,17,34,23,35,10,26,8,37,31,23,6,14,34,5,16,20,0,12,0,0,0,41,0]} 1. e4 {[%emt 1:31:00]} c5 {[%emt 1:31:00]} 2. Nf3 {[%emt 0:00:00]} Nc6 {[%emt 0:00:30]} 3. d4 {[%emt 0:00:00]} cxd4 {[%emt 0:00:00]} 4. Nxd4 {[%emt 0:00:00]} Nf6 {[%emt 0:00:00]} 5. Nc3 {[%emt 0:00:00]} e5 {[%emt 0:00:00]} 6. Ndb5 {[%emt 0:00:00][%cal Bd4b5,Bb5a3,Ba3c2,Bc2b4,Bb4d5][%mdl 32]} d6 {[%emt 0:00:00]} 7. Bg5 {[%emt 0:00:00]} a6 {[%emt 0:00:00]} 8. Na3 {[%emt 0:00:00]} b5 {[%emt 0:03:00]} 9. Nd5 {[%emt 0:00:00]} Be7 {[%emt 0:00:00][%cal Bf8e7,Be7f6,Bf6g5,Bg5h6][%mdl 32]} 10. Bxf6 {[%emt 0:00:00]} Bxf6 {[%emt 0:01:00]} 11. c3 {[%emt 0:00:00]} Bg5 {[%emt 0:00:00]} 12. Nc2 {[%emt 0:00:00]} Ne7 {[%emt 0:00:00]} 13. h4 {[%emt 0:00:00]} Bh6 {[%emt 0:00:00]} 14. Ncb4 {[%emt 0:00:00] A dynamic duo of knights.} O-O {[%emt 0:00:00]} 15. a4 {[%emt 0:00:00] White has an edge.} bxa4 {[%emt 0:00:00]} 16. Rxa4 {[%emt 0:00:00]} a5 {[%emt 0:03:00]} 17. Bc4 {[%emt 0:08:00]} Bd7 {[%emt 0:00:00][%cal Od7a4]} 18. Nxe7+ {[%emt 0:00:00]} Qxe7 {[%emt 0:01:00]} 19. Nd5 {[%emt 0:00:00]} Qd8 {[%emt 0:00:00]} 20. Ra2 {[%emt 0:00:00]} Kh8 {[%emt 0:00:00]} 21. Qe2 {[%emt 0:02:00]} Rc8 {[%emt 0:01:30]} 22. g3 {[%emt 0:00:30]} g6 {[%emt 0:00:30]} 23. b3 {[%emt 0:00:00][%mdl 32768] Not much happened in this game.   Weighted Error Value: White=0.08 (flawless) /Black=0.07 (flawless) .  Inaccurate:     	White=1     	Black=1      OK:         	White=5     	Black=5     . Loss on time!?} 0-1

[Event "Czech Extraliga 2024-25"]
[Site "Czechia"]
[Date "2024.11.02"]
[Round "1.2"]
[White "Cyborowski, Lukasz"]
[Black "Gloser, David"]
[Result "1-0"]
[ECO "D32"]
[WhiteElo "2454"]
[BlackElo "2332"]
[Annotator "TA"]
[PlyCount "97"]
[EventDate "2024.09.12"]
[EventType "team-tourn"]
[EventCountry "CZE"]
[SourceTitle "playchess.com"]
[Source "ChessBase"]
[SourceQuality "1"]
[TimeControl "40/5400+30:1800+30"]

{[%evp 20,97,36,19,49,51,34,52,37,53,53,50,55,43,78,64,84,75,62,43,69,69,95,58,77,68,66,56,90,87,129,97,160,115,314,309,329,318,318,266,274,266,362,356,395,391,406,411,404,393,377,416,426,421,433,432,471,445,427,451,439,439,491,482,584,557,551,537,525,502,537,537,477,424,589,580,1663,1792,1179,1108]} 1. Nf3 {[%emt 0:00:06]} Nf6 {[%emt 0:01:06]} 2. c4 {[%emt 0:00:20]} e6 {[%emt 0:00:55]} 3. Nc3 {[%emt 0:02:39]} d5 {[%emt 0:00:40]} 4. e3 {[%emt 0:02:34]} a6 {[%emt 0:05:39]} 5. b3 {[%emt 0:02:44]} c5 {[%emt 0:02:15]} 6. Bb2 {[%emt 0:04:31]} Nc6 {[%emt 0:03:14]} 7. cxd5 {[%emt 0:02:42]} exd5 {[%emt 0:01:08]} 8. d4 {[%emt 0:01:39]} cxd4 {[%emt 0:07:48]} 9. Nxd4 {[%emt 0:00:58]} Bd6 {[%emt 0:02:47]} 10. Be2 {[%emt 0:04:27]} O-O {[%emt 0:02:24]} 11. O-O {[%emt 0:01:12]} Bc7 {[%emt 0:05:15]} 12. Bf3 {[%emt 0:15:44]} Qd6 {[%emt 0:06:12][%csl Gc7][%cal Rd6h2] [#]} 13. g3 {[%emt 0:00:21]} Bh3 {[%emt 0:05:08] White is slightly better.} 14. Bg2 {[%emt 0:00:58]} Bxg2 {[%emt 0:01:35]} 15. Kxg2 {[%emt 0:00:07]} Rad8 {[%emt 0:02:29]} 16. Nce2 {[%emt 0:05:21]} Rfe8 {[%emt 0:13:51]} 17. Nxc6 {[%emt 0:12:26]} bxc6 {[%emt 0:01:03]} 18. Rc1 {[%emt 0:00:05]} Bb6 {[%emt 0:04:46]} 19. Nd4 {[%emt 0:08:46]} Bxd4 {[%emt 0:05:02]} 20. Qxd4 {[%emt 0:00:18]} Qd7 {[%emt 0:01:35]} 21. Qb6 {[%emt 0:15:00]} Re6 {[%emt 0:00:41]} 22. Qxa6 {[%emt 0:00:04] White is more active.} Ne4 {[%emt 0:02:09]} 23. Qe2 {[%emt 0:00:04]} Rde8 {[%emt 0:03:56]} 24. Qg4 {[%emt 0:02:22][%csl Gb2][%cal Rg4g7]} g6 {[%emt 0:03:36]} 25. Rc2 {[%emt 0:04:02]} h5 {[%emt 0:02:06]} (25... c5 $142) 26. Qf4 $40 {[%emt 0:00:44][%mdl 128] And now f3 would win. White is out for blood.} f5 $2 {[%emt 0:01:48] This move loses the game for Black.} (26... c5 $16) 27. Qh6 $18 {[%emt 0:02:15]} Qh7 {[%emt 0:05:32]} 28. Qxh7+ {[%emt 0:00:05]} Kxh7 {[%emt 0:00:02]} 29. Rfc1 {[%emt 0:00:10]} c5 {[%emt 0:01:35]} 30. Rd1 {[%emt 0:05:12]} g5 {[%emt 0:05:12][%cal Bg6g5,Bg5g4][%mdl 32]} 31. Rxd5 {[%emt 0:01:10]} g4 {[%emt 0:00:19]} 32. Rxf5 {[%emt 0:01:11]} Kg6 {[%emt 0:00:39]} 33. Rd5 {[%emt 0:01:48]} Rf8 {[%emt 0:01:35]} 34. Re5 {[%emt 0:02:48]} Rxe5 {[%emt 0:00:34]} 35. Bxe5 {[%emt 0:00:05][%mdl 4096] Endgame. KRB-KRN} Rd8 {[%emt 0:01:14]} 36. h3 {[%emt 0:01:36] White is clearly winning.} Kf5 {[%emt 0:01:20]} 37. Bf4 {[%emt 0:00:20]} Rd1 {[%emt 0:00:54]} 38. hxg4+ {[%emt 0:00:19]} hxg4 {[%emt 0:00:09]} 39. f3 {[%emt 0:00:57]} gxf3+ {[%emt 0:01:12]} 40. Kxf3 {[%emt 0:00:05]} Rf1+ {[%emt 0:00:15]} 41. Ke2 {[%emt 0:32:02]} Rf2+ {[%emt 0:04:56]} 42. Kd3 {[%emt 0:00:00] Strongly threatening Rxf2.} c4+ {[%emt 0:00:04]} 43. bxc4 {[%emt 0:00:00] aiming for Rxf2.} (43. Kxc4 $2 {loses.} Rxc2+ 44. Kd3 Rd2+ (44... Rxa2 45. g4+ Kxg4 46. Kxe4 $11) 45. Kc4 Rxa2 $19) 43... Nc5+ {[%emt 0:00:15]} 44. Kc3 {[%emt 0:00:00]} Na4+ {[%emt 0:00:04]} 45. Kb3 {[%emt 0:00:00]} Nc5+ {[%emt 0:00:04]} 46. Kb2 {[%emt 0:00:00]} Na4+ {[%emt 0:00:21] [#]} 47. Kb1 $1 {[%emt 0:00:00]} Rf1+ {[%emt 0:00:36]} 48. Rc1 {[%emt 0:00:00]} Rf2 {[%emt 0:00:02]} 49. c5 {[%emt 0:00:00] Weighted Error Value: White=0.07 (flawless) /Black=0.35.  Loses game:     	---       	Black=1      Mistake:       	---       	Black=1      Inaccurate:     	White=1     	Black=8      OK:         	White=17    	Black=8      Best:        	White=7     	Black=3      Strong:       	White=1     	---} 1-0